{"text_format":"1","workbook":"xlsx","n_sheets":3,"sheets":["ورقة1","ورقة4","ورقة2"],"not_rendered":{"charts":0,"images":11,"macros":1,"external_links":0,"defined_names":1,"comments":0,"pivot_tables":0},"unopened":[],"bounds":{"document_bytes":16777216,"sheet_cells":100000,"rows_first":2000,"rows_last":500,"rows_between":2000,"halvings":0,"cell_chars":16384,"cell_head_chars":4096},"cells_cut":0,"cells_raw":0,"read":"whole","date_system":"1900"}

{"sheet":"ورقة1","index":0,"n_rows":11,"n_cols":18,"rows_kept":11,"cut":false,"hidden":false,"merged":[[11,2,12,6],[2,4,2,5]]}
[null,null,null,null,null,null,null,null,null,null,null,null,null,null,null,null,null,"سباحه رجالى "]
[null,null,null,null,null,null,null,null,null,null,null,555,null,null,null,null,null,"اسكواش رجالى "]
[null,null,null,"بحث الاسم",null,null,null,null,null,null,null,null,null,null,null,null,null,"سباحه سيدات "]
[null,null,null,null,null,null,null,null,null,null,null,null,null,null,null,null,null,"اسكواش سيدات"]
[null,null,"رقم العضويه",null,null,"نوع العضويه"]
[null,null,null,1]
[null,null,"اسم العضو",null,null,"تاريخ الاشتراك"]
[]
[null,null,"رقم الدولاب",null,null,"رقم التليفون"]
["ى"]
[null,null,"رقم الايصال ",null,null," نوع الدولاب "]

{"sheet":"ورقة4","index":1,"n_rows":67,"n_cols":15,"rows_kept":67,"cut":false,"hidden":true,"merged":[[0,1,0,9]]}
[null,"نادى الصيد فرع القطاميه                                          بيان بااشتراك الدواليب"]
["م","رقم العضويه","اسم العضو","رقم الدولاب","رقم الايصال","نوع العضويه","تاريخ الاشتراك","رقم التليفون","نوع الدولاب","سبب الحذف",null,null,null,null,1]
[1,1,6,"سباحه رجالى ","قطاميه",6,6,"اسكواش رجالى ",1]
[{"$f":"IF(B3<>\"\",A3+1)","v":2},1,2,3,"اسكواش رجالى ","دقى",5,6,7]
[{"$f":"IF(B4<>\"\",A4+1)","v":3},1,1,2,"سباحه سيدات ","دقى",2,2,2]
[4]
[false]
[false]
[false]
[false]
[false]
[false]
[false]
[false]
[false]
[false]
[false]
[false]
[false]
[false]
[false]
[false]
[false]
[false]
[false]
[false]
[false]
[false]
[false]
[false]
[false]
[false]
[false]
[false]
[false]
[false]
[false]
[false]
[false]
[false]
[false]
[false]
[false]
[false]
[false]
[false]
[false]
[false]
[false]
[false]
[false]
[false]
[false]
[false]
[false]
[false]
[false]
[false]
[false]
[false]
[false]
[false]
[false]
[false]
[false]
[false]
[false]

{"sheet":"ورقة2","index":2,"n_rows":715,"n_cols":19,"rows_kept":715,"cut":false,"hidden":true,"merged":[[0,1,0,8]]}
[null,"نادى الصيد فرع القطاميه          بيان بااشتراك الدواليب",null,null,null,null,null,null,null,null,null,null,null,null,"الاسم","رقم الصف","قطاميه","دقى","سباحه رجالى "]
["م","رقم العضويه","اسم العضو","رقم الدولاب","رقم الايصال","نوع العضويه","تاريخ الاشتراك","رقم التليفون","نوع الدولاب",null,null,null,null,null,1,{"$f":"MATCH(O2,C:C,0)","v":3},{"$f":"IF(INDEX(F:F,P2)=\"قطاميه\",TRUE,FALSE)","v":true},{"$f":"IF(INDEX(F:F,P2)=\"دقى\",TRUE,FALSE)","v":false},"اسكواش رجالى "]
[1,1,1,1,1,"قطاميه",1,1,"اسكواش رجالى ",null,null,null,null,null,null,null,null,null,"سباحه سيدات "]
[2,null,null,null,null,null,null,null,null,null," ",null,null,null,null,null,null,null,"اسكواش سيدات"]
[3,null,null,null,null,null,null,null,null,null,null,null,null,null,null,null,null,null,"خالد"]
[4]
[5]
[6,null,null,null,null,null,null,null,null,null,null,null,null,null,null,null,null,null,"اسكواش سيدات"]
[7]
[8]
[9]
[10]
[11]
[12]
[13]
[14]
[15]
[16]
[17]
[18]
[19]
[20]
[21]
[22]
[23]
[24]
[25]
[26]
[27]
[28]
[{"$f":"IF(B3<>\"\",A30+1)","v":29}]
[{"$f":"IF(B31<>\"\",A31+1)","v":false}]
[false]
[false]
[false]
[false]
[false]
[false]
[false]
[false]
[false]
[false]
[false]
[false]
[false]
[false]
[false]
[false]
[false]
[false]
[false]
[false]
[false]
[false]
[false]
[false]
[false]
[false]
[false]
[{"$f":"IF(B59<>\"\",A59+1)","v":false}]
[false]
[false]
[false]
[false]
[false]
[false]
[false]
[false]
[false]
[false]
[false]
[false]
[false]
[false]
[false]
[false]
[false]
[false]
[false]
[false]
[false]
[false]
[false]
[false]
[false]
[false]
[false]
[false]
[false]
[false]
[false]
[false]
[false]
[false]
[false]
[false]
[false]
[false]
[false]
[false]
[false]
[false]
[false]
[false]
[false]
[false]
[false]
[false]
[false]
[false]
[false]
[false]
[false]
[false]
[false]
[false]
[false]
[false]
[false]
[false]
[false]
[false]
[false]
[{"$f":"IF(B123<>\"\",A123+1)","v":false}]
[false]
[false]
[false]
[false]
[false]
[false]
[false]
[false]
[false]
[false]
[false]
[false]
[false]
[false]
[false]
[false]
[false]
[false]
[false]
[false]
[false]
[false]
[false]
[false]
[false]
[false]
[false]
[false]
[false]
[false]
[false]
[false]
[false]
[false]
[false]
[false]
[false]
[false]
[false]
[false]
[false]
[false]
[false]
[false]
[false]
[false]
[false]
[false]
[false]
[false]
[false]
[false]
[false]
[false]
[false]
[false]
[false]
[false]
[false]
[false]
[false]
[false]
[false]
[{"$f":"IF(B187<>\"\",A187+1)","v":false}]
[false]
[false]
[false]
[false]
[false]
[false]
[false]
[false]
[false]
[false]
[false]
[false]
[false]
[false]
[false]
[false]
[false]
[false]
[false]
[false]
[false]
[false]
[false]
[false]
[false]
[false]
[false]
[false]
[false]
[false]
[false]
[false]
[false]
[false]
[false]
[false]
[false]
[false]
[false]
[false]
[false]
[false]
[false]
[false]
[false]
[false]
[false]
[false]
[false]
[false]
[false]
[false]
[false]
[false]
[false]
[false]
[false]
[false]
[false]
[false]
[false]
[false]
[false]
[{"$f":"IF(B251<>\"\",A251+1)","v":false}]
[false]
[false]
[false]
[false]
[false]
[false]
[false]
[false]
[false]
[false]
[false]
[false]
[false]
[false]
[false]
[false]
[false]
[false]
[false]
[false]
[false]
[false]
[false]
[false]
[false]
[false]
[false]
[false]
[false]
[false]
[false]
[false]
[false]
[false]
[false]
[false]
[false]
[false]
[false]
[false]
[false]
[false]
[false]
[false]
[false]
[false]
[false]
[false]
[false]
[false]
[false]
[false]
[false]
[false]
[false]
[false]
[false]
[false]
[false]
[false]
[false]
[false]
[false]
[{"$f":"IF(B315<>\"\",A315+1)","v":false}]
[false]
[false]
[false]
[false]
[false]
[false]
[false]
[false]
[false]
[false]
[false]
[false]
[false]
[false]
[false]
[false]
[false]
[false]
[false]
[false]
[false]
[false]
[false]
[false]
[false]
[false]
[false]
[false]
[false]
[false]
[false]
[false]
[false]
[false]
[false]
[false]
[false]
[false]
[false]
[false]
[false]
[false]
[false]
[false]
[false]
[false]
[false]
[false]
[false]
[false]
[false]
[false]
[false]
[false]
[false]
[false]
[false]
[false]
[false]
[false]
[false]
[false]
[false]
[{"$f":"IF(B379<>\"\",A379+1)","v":false}]
[false]
[false]
[false]
[false]
[false]
[false]
[false]
[false]
[false]
[false]
[false]
[false]
[false]
[false]
[false]
[false]
[false]
[false]
[false]
[false]
[false]
[false]
[false]
[false]
[false]
[false]
[false]
[false]
[false]
[false]
[false]
[false]
[false]
[false]
[false]
[false]
[false]
[false]
[false]
[false]
[false]
[false]
[false]
[false]
[false]
[false]
[false]
[false]
[false]
[false]
[false]
[false]
[false]
[false]
[false]
[false]
[false]
[false]
[false]
[false]
[false]
[false]
[false]
[{"$f":"IF(B443<>\"\",A443+1)","v":false}]
[false]
[false]
[false]
[false]
[false]
[false]
[false]
[false]
[false]
[false]
[false]
[false]
[false]
[false]
[false]
[false]
[false]
[false]
[false]
[false]
[false]
[false]
[false]
[false]
[false]
[false]
[false]
[false]
[false]
[false]
[false]
[false]
[false]
[false]
[false]
[false]
[false]
[false]
[false]
[false]
[false]
[false]
[false]
[false]
[false]
[false]
[false]
[false]
[false]
[false]
[false]
[false]
[false]
[false]
[false]
[false]
[false]
[false]
[false]
[false]
[false]
[false]
[false]
[{"$f":"IF(B507<>\"\",A507+1)","v":false}]
[false]
[false]
[false]
[false]
[false]
[false]
[false]
[false]
[false]
[false]
[false]
[false]
[false]
[false]
[false]
[false]
[false]
[false]
[false]
[false]
[false]
[false]
[false]
[false]
[false]
[false]
[false]
[false]
[false]
[false]
[false]
[false]
[false]
[false]
[false]
[false]
[false]
[false]
[false]
[false]
[false]
[false]
[false]
[false]
[false]
[false]
[false]
[false]
[false]
[false]
[false]
[false]
[false]
[false]
[false]
[false]
[false]
[false]
[false]
[false]
[false]
[false]
[false]
[{"$f":"IF(B571<>\"\",A571+1)","v":false}]
[false]
[false]
[false]
[false]
[false]
[false]
[false]
[false]
[false]
[false]
[false]
[false]
[false]
[false]
[false]
[false]
[false]
[false]
[false]
[false]
[false]
[false]
[false]
[false]
[false]
[false]
[false]
[false]
[false]
[false]
[false]
[false]
[false]
[false]
[false]
[false]
[false]
[false]
[false]
[false]
[false]
[false]
[false]
[false]
[false]
[false]
[false]
[false]
[false]
[false]
[false]
[false]
[false]
[false]
[false]
[false]
[false]
[false]
[false]
[false]
[false]
[false]
[false]
[{"$f":"IF(B635<>\"\",A635+1)","v":false}]
[false]
[false]
[false]
[false]
[false]
[false]
[false]
[false]
[false]
[false]
[false]
[false]
[false]
[false]
[false]
[false]
[false]
[false]
[false]
[false]
[false]
[false]
[false]
[false]
[false]
[false]
[false]
[false]
[false]
[false]
[false]
[false]
[false]
[false]
[false]
[false]
[false]
[false]
[false]
[false]
[false]
[false]
[false]
[false]
[false]
[false]
[false]
[false]
[false]
[false]
[false]
[false]
[false]
[false]
[false]
[false]
[false]
[false]
[false]
[false]
[false]
[false]
[false]
[{"$f":"IF(B699<>\"\",A699+1)","v":false}]
[false]
[false]
[false]
[false]
[false]
[false]
[false]
[false]
[false]
[false]
[false]
[false]
[false]
[false]
[false]